[Event "GER-ch Youth-U12 2022"]
[Site "Willingen"]
[Date "2022.06.10"]
[Round "8.6"]
[White "Zhuikov, Edgard"]
[Black "Neuhoff, Laertes"]
[Result "1-0"]
[ECO "B22"]
[WhiteElo "1892"]
[BlackElo "1990"]
[Annotator "TA"]
[PlyCount "131"]
[EventDate "2022.06.05"]
[EventType "swiss"]
[EventRounds "9"]
[EventCountry "GER"]
[SourceTitle "playchess.com"]
[Source "ChessBase"]
[SourceQuality "1"]
[TimeControl "40/4500+30:900+30"]

{[%evp 13,131,22,24,-71,-39,-50,-22,-45,-47,-45,-47,-85,-86,-94,-84,-89,-90,-88,-78,-72,-73,-118,-119,-127,-105,-121,-54,-64,19,14,15,4,6,0,0,0,0,0,0,0,-4,-89,-15,-54,-13,-18,0,-28,-28,-28,-28,-245,0,0,0,-28,-15,-211,8,8,41,41,1464,1356,1347,950,1283,1125,2011,1806,1780,1388,1593,10,10,10,29966,29965,29966,12719,29972,29971,29972,29972,29971,29967,29985,29986,29986,29987,29987,29988,29988,29989,29988,29989,29989,29990,29991,29989,29989,29990,29989,29990,29990,29991,29991,29992,29992,29993,29993,29993,29993,29992,29995,29993,29993,29994,29994,29995]} 1. e4 {[%emt 0:00:00]} c5 {[%emt 0:00:00]} 2. c3 {[%emt 0:00:00]} d5 {[%emt 0:00:00]} 3. exd5 {[%emt 0:00:00]} Qxd5 {[%emt 0:00:00]} 4. d4 {[%emt 0:00:00]} Nf6 {[%emt 0:00:00]} 5. dxc5 {[%emt 0:00:00]} Qxd1+ {[%emt 0:02:56]} 6. Kxd1 {[%emt 0:00:00]} e5 {[%emt 0:05:01]} 7. b4 {[%emt 0:00:00]} Nc6 {[%emt 0:11:29]} 8. f3 {[%emt 0:00:00] B22: Sicilian: 2 c3.} (8. Nf3 $11 {remains equal.}) 8... Bf5 {[%emt 0:08:52][%mdl 1024] [#] Black has strong compensation.} (8... a5 $5 {[%cal Ra5b4]} 9. b5 Ne7 $15) 9. a4 $146 {[%emt 0:00:00]} ({Predecessor:} 9. Bb5 O-O-O+ 10. Ke2 Nd5 11. Bxc6 bxc6 12. Bb2 Nf4+ 13. Ke3 Rd1 14. Nd2 Nxg2+ 15. Ke2 Rxa1 16. Bxa1 {0-1 (24) Sniadecki,J (1723)-Kaminski,D (1814) Poland 2017}) 9... O-O-O+ {[%emt 0:13:20]} 10. Bd2 $1 {[%emt 0:00:00] The position is equal.} Nd5 {[%emt 0:08:06]} 11. Kc1 {[%emt 0:00:00]} a5 $1 {[%emt 0:02:19][%cal Ra5b4]} 12. Bb5 {[%emt 0:00:00]} axb4 {[%emt 0:03:23]} (12... Kc7 {keeps more tension.} 13. Bxc6 bxc6 14. Ne2 axb4 15. cxb4 Rb8) 13. Bxc6 {[%emt 0:00:00]} bxc3 {[%emt 0:10:23]} 14. Bg5 {[%emt 0:00:00]} bxc6 {[%emt 0:01:33]} 15. Bxd8 {[%emt 0:00:00]} Kxd8 {[%emt 0:01:28]} 16. Ne2 {[%emt 0:00:21]} c2 {[%emt 0:02:52]} 17. Na3 {[%emt 0:00:15]} Nb4 {[%emt 0:00:58]} ({Worse is} 17... Bxc5 18. Nxc2 Kc7 19. Ng3) 18. Ng3 {[%emt 0:04:51]} Bd3 {[%emt 0:05:45]} 19. Ne4 {[%emt 0:00:13]} g6 {[%emt 0:01:56]} ({Better is} 19... Kc7 $17 {aiming for ...f5.} 20. Nf2 Bxc5 21. Nxd3 Be3+ 22. Kb2 Bd4+ 23. Kc1 Nxd3+ 24. Kxc2 Nb4+ 25. Kb3 Bxa1 26. Rxa1 Rb8) 20. Kb2 {[%emt 0:02:05]} Bh6 {[%emt 0:02:05]} (20... f5 $1 $15 21. Ng5 Ke8) 21. Kc3 $1 $11 {[%emt 0:10:03]} Bxe4 {[%emt 0:01:43] A strong pair of Bishops.} 22. Kxb4 {[%emt 0:01:35] Chess con chili.} Bd2+ {[%emt 0:01:18]} 23. Kc4 {[%emt 0:01:16]} Bd5+ {[%emt 0:00:38]} 24. Kd3 {[%emt 0:00:06]} c1=Q {[%emt 0:00:06]} 25. Rhxc1 {[%emt 0:00:15]} Bxc1 {[%emt 0:00:00]} 26. Rxc1 {[%emt 0:00:13][%mdl 4096] Endgame KRB-KRN} Kc7 {[%emt 0:00:41]} 27. Kc3 {[%emt 0:01:35]} (27. Nc4 $11) 27... Rb8 {[%emt 0:01:17]} (27... Ra8 $17 28. Kb4 Rb8+ 29. Ka5 f5) 28. Rb1 {[%emt 0:00:14]} Rxb1 {[%emt 0:00:32]} (28... Ra8 $5 {[%cal Ra8a4]} 29. Kb4 e4 30. fxe4 Rb8+ 31. Kc3 Rxb1 32. Nxb1 Bxe4 $17) 29. Nxb1 $15 {[%emt 0:00:03] KB-KN} f5 {[%emt 0:00:24]} 30. Nd2 {[%emt 0:00:46]} Kb7 {[%emt 0:00:14]} 31. Kb4 {[%emt 0:00:40]} Ka6 {[%emt 0:00:24]} 32. Nf1 $2 {[%emt 0:00:40] [#]} (32. g3 $11) 32... h6 $2 {[%emt 0:00:42]} (32... f4 $1 $19 {Hoping for ...e4.} 33. a5 e4 34. fxe4 Bxe4) 33. Ne3 $11 {[%emt 0:00:13]} Be6 {[%emt 0:00:25]} 34. g3 {[%emt 0:00:18]} g5 {[%emt 0:00:39]} 35. g4 $2 {[%emt 0:00:44]} (35. Nc2 $11 {and White has nothing to worry.}) 35... fxg4 $2 {[%emt 0:00:43]} (35... f4 $19 36. Nf1 e4 37. fxe4 Bxg4) 36. fxg4 {[%emt 0:00:11]} Bf7 {[%emt 0:00:27]} 37. Nf5 {[%emt 0:02:15]} h5 $2 {[%emt 0:00:33][%mdl 8192]} (37... Ba2 $14) 38. Nd6 $18 {[%emt 0:00:58]} Bg6 {[%emt 0:00:23]} 39. gxh5 {[%emt 0:00:28]} Bxh5 {[%emt 0:00:01]} 40. Ne4 {[%emt 0:00:20]} Bg6 {[%emt 0:01:12]} 41. Nxg5 {[%emt 0:15:07]} e4 {[%emt 0:00:00]} 42. Ne6 {[%emt 0:00:00]} e3 {[%emt 0:01:33]} 43. Nd4 $2 {[%emt 0:00:00]} ({White should try} 43. Kc3 $18 {White wants to mate with Nf4.} e2 44. Kd2) 43... Bh5 $1 $11 {[%emt 0:07:09]} 44. Kc3 {[%emt 0:00:00]} (44. Nxc6 e2 45. Kb3 Bf7+ 46. Kc2 e1=Q 47. h4 Qe4+ 48. Kd2 Qxc6 49. Ke3 Bg6 50. Kf2 Qxc5+ 51. Ke2 Qc3 52. Kf2 Bh5 53. Kg2 Qf3+ 54. Kg1 Qe2 55. a5 Bf3 56. h5 Qg2#) 44... Be8 {[%emt 0:03:28][%mdl 8192] [#] White stays focused until the end.} (44... Ka5 $11) 45. Kd3 {[%emt 0:00:00]} Ka5 {[%emt 0:00:12]} 46. Kxe3 {[%emt 0:00:00] Threatening mate with Ne6.} Kxa4 {[%emt 0:00:17]} 47. Ke4 {[%emt 0:00:00] White mates.} Kb4 {[%emt 0:04:05]} 48. Ne6 {[%emt 0:00:00]} Bf7 {[%emt 0:01:17]} 49. Ke5 {[%emt 0:00:00]} Bxe6 {[%emt 0:00:14]} 50. Kxe6 {[%emt 0:00:00]} Kxc5 {[%emt 0:00:02] KP-KP} 51. h4 {[%emt 0:00:00]} Kd4 {[%emt 0:01:03]} 52. h5 {[%emt 0:00:00]} c5 {[%emt 0:00:03]} 53. h6 {[%emt 0:00:00]} c4 {[%emt 0:00:06]} 54. h7 {[%emt 0:00:00]} c3 {[%emt 0:00:10]} 55. h8=Q+ {[%emt 0:00:05]} Kd3 {[%emt 0:00:03]} 56. Qh1 {[%emt 0:00:00]} Kd2 {[%emt 0:00:15]} 57. Qg2+ {[%emt 0:00:00]} Kd1 {[%emt 0:01:31]} 58. Qf1+ {[%emt 0:00:00]} Kd2 {[%emt 0:00:27]} 59. Qf2+ {[%emt 0:00:00]} Kd1 {[%emt 0:00:50]} 60. Qd4+ {[%emt 0:00:00]} Kc2 {[%emt 0:00:14]} 61. Kd5 {[%emt 0:00:00]} Kb3 {[%emt 0:00:54]} 62. Qd3 {[%emt 0:00:00]} Kb2 {[%emt 0:00:15]} 63. Qb5+ {[%emt 0:00:00]} Ka1 {[%emt 0:02:05]} 64. Qa4+ {[%emt 0:00:00]} ({Weaker is} 64. Qb3 c2 $11) 64... Kb2 {[%emt 0:00:40]} 65. Qb4+ {[%emt 0:00:00]} Kc2 {[%emt 0:00:08]} 66. Kd4 {[%emt 0:00:00] Weighted Error Value: White=0.45/Black=0.42} 1-0

[Event "GER-ch Youth-U12 2022"]
[Site "Willingen"]
[Date "2022.06.10"]
[Round "8.7"]
[White "Gloeckler, Christian"]
[Black "Skembris, Simon Max"]
[Result "0-1"]
[ECO "C42"]
[WhiteElo "1869"]
[BlackElo "1413"]
[Annotator "NA RC COMBH"]
[PlyCount "128"]
[EventDate "2022.06.05"]
[EventType "swiss"]
[EventRounds "9"]
[EventCountry "GER"]
[SourceTitle "playchess.com"]
[Source "ChessBase"]
[SourceQuality "1"]
[TimeControl "40/4500+30:900+30"]

1. e4 {[%emt 0:00:00]} e5 {[%emt 0:00:00]} 2. Nf3 {[%emt 0:00:00]} Nf6 {[%emt 0:00:00]} 3. Nxe5 {[%emt 0:00:00]} d6 {[%emt 0:00:00]} 4. Nf3 {[%emt 0:00:00]} Nxe4 {[%emt 0:00:00]} 5. d4 {[%emt 0:00:00]} d5 {[%emt 0:00:00]} 6. Bd3 {[%emt 0:00:00]} Be7 {[%emt 0:00:00]} 7. O-O {[%emt 0:00:00]} Nc6 {[%emt 0:00:00]} 8. Nc3 {[%emt 0:00:00]} Bf5 {[%emt 0:00:00]} 9. Re1 {[%emt 0:00:00]} Nxc3 {[%emt 0:00:00]} 10. bxc3 {[%emt 0:00:00]} Bxd3 {[%emt 0:00:00]} 11. Qxd3 {[%emt 0:00:00]} O-O {[%emt 0:00:00]} 12. Bf4 {[%emt 0:00:00]} Na5 {[%emt 0:06:18]} 13. Rab1 {[%emt 0:00:00]} b6 {[%emt 0:01:44]} 14. Ne5 {[%emt 0:02:41]} f6 {[%emt 0:03:02]} 15. Nf3 {[%emt 0:01:14]} Bd6 {[%emt 0:07:13]} 16. Bxd6 {[%emt 0:05:09]} Qxd6 {[%emt 0:02:23]} 17. Nh4 {[%emt 0:00:25]} Rfe8 {[%emt 0:02:58]} 18. Nf5 {[%emt 0:03:12]} Qd7 {[%emt 0:02:07]} 19. Qh3 {[%emt 0:01:39]} Rxe1+ {[%emt 0:08:04]} 20. Rxe1 {[%emt 0:00:24]} Re8 {[%emt 0:01:53]} 21. Rxe8+ {[%emt 0:10:44]} Qxe8 {[%emt 0:00:20]} 22. Qe3 {[%emt 0:00:11]} Qxe3 {[%emt 0:02:20]} 23. fxe3 {[%emt 0:00:19]} (23. Nxe3 $15 {might be stronger.} c6 24. g4) 23... Kf7 {[%emt 0:03:34]} 24. Kf2 {[%emt 0:00:45]} g6 {[%emt 0:01:22]} 25. Ng3 {[%emt 0:01:46]} Nc4 {[%emt 0:03:52]} 26. Ke2 {[%emt 0:00:31]} Ke6 {[%emt 0:03:56]} 27. Nh1 {[%emt 0:05:41]} (27. Kd3 $142) 27... Nd6 {[%emt 0:03:25]} 28. Nf2 {[%emt 0:03:05]} Kf5 {[%emt 0:05:15]} 29. Kd3 {[%emt 0:05:15]} h5 {[%emt 0:07:55]} 30. h3 {[%emt 0:05:12]} (30. Nh1 $17 {was worth a try.}) 30... b5 {[%emt 0:05:22]} 31. g3 {[%emt 0:02:08]} c6 {[%emt 0:01:22]} 32. Ke2 {[%emt 0:02:13]} Ne4 {[%emt 0:01:50]} 33. Nxe4 {[%emt 0:00:26]} dxe4 {[%emt 0:02:24]} ({Avoid the trap} 33... Kxe4 $2 34. h4 $19) 34. Kf2 {[%emt 0:01:48]} Ke6 {[%emt 0:01:38]} 35. c4 {[%emt 0:02:14]} bxc4 {[%emt 0:01:03]} 36. g4 {[%emt 0:03:22]} h4 {[%emt 0:00:59]} 37. c3 {[%emt 0:00:39]} g5 {[%emt 0:01:06]} 38. a4 {[%emt 0:02:13]} f5 {[%emt 0:00:32]} 39. gxf5+ {[%emt 0:00:51]} Kxf5 {[%emt 0:00:11]} 40. Kg2 {[%emt 0:01:43]} g4 {[%emt 0:00:33]} 41. a5 {[%emt 0:16:06]} gxh3+ {[%emt 0:18:23]} 42. Kxh3 {[%emt 0:00:20]} Kg5 {[%emt 0:00:06]} 43. a6 {[%emt 0:00:21]} Kh5 {[%emt 0:00:05]} 44. Kh2 {[%emt 0:00:23]} Kg4 {[%emt 0:00:03]} 45. Kg2 {[%emt 0:00:08] [#]} h3+ $1 {[%emt 0:00:14]} 46. Kh2 {[%emt 0:00:09]} Kf3 {[%emt 0:00:59]} 47. Kxh3 {[%emt 0:00:08]} Kxe3 {[%emt 0:00:07]} 48. Kg4 {[%emt 0:00:13]} Kd2 {[%emt 0:00:30]} 49. Kf4 {[%emt 0:00:09]} e3 {[%emt 0:00:07]} 50. Ke5 {[%emt 0:00:05]} e2 {[%emt 0:00:26]} 51. Kd6 {[%emt 0:00:12]} Kxc3 {[%emt 0:00:49]} 52. Kxc6 {[%emt 0:00:15]} Kxd4 {[%emt 0:00:07]} 53. Kb7 {[%emt 0:00:08]} e1=Q {[%emt 0:00:15]} 54. Kxa7 {[%emt 0:00:12]} Qa5 {[%emt 0:00:16]} 55. Kb7 {[%emt 0:00:11]} c3 {[%emt 0:00:16]} 56. a7 {[%emt 0:00:05]} c2 {[%emt 0:00:16]} 57. a8=Q {[%emt 0:00:07]} Qxa8+ {[%emt 0:00:07]} 58. Kxa8 {[%emt 0:00:06]} c1=Q {[%emt 0:00:13]} 59. Kb7 {[%emt 0:00:09]} Qc5 {[%emt 0:00:13]} 60. Ka6 {[%emt 0:00:16]} Qb4 {[%emt 0:00:06]} 61. Ka7 {[%emt 0:00:21]} Qb5 $19 {[%emt 0:00:55]} (61... Kc5 $142 62. Ka8 Kc6 63. Ka7 Qb7#) 62. Ka8 {[%emt 0:00:08]} Kc5 {[%emt 0:00:05]} 63. Ka7 {[%emt 0:00:06]} Kc6 {[%emt 0:00:06]} 64. Ka8 {[%emt 0:00:03]} Qb7# {[%emt 0:00:03]} 0-1

[Event "GER-ch Youth-U12 2022"]
[Site "Willingen"]
[Date "2022.06.10"]
[Round "8.8"]
[White "Pimenov, Danil"]
[Black "Polzin, Gustav"]
[Result "0-1"]
[ECO "B84"]
[WhiteElo "1337"]
[BlackElo "1643"]
[Annotator "NA RC COMBH"]
[PlyCount "100"]
[EventDate "2022.06.05"]
[EventType "swiss"]
[EventRounds "9"]
[EventCountry "GER"]
[SourceTitle "playchess.com"]
[Source "ChessBase"]
[SourceQuality "1"]
[TimeControl "40/4500+30:900+30"]

1. e4 {[%emt 0:00:00]} c5 {[%emt 0:00:00]} 2. Nf3 {[%emt 0:00:00]} e6 {[%emt 0:00:00]} 3. d4 {[%emt 0:00:00]} cxd4 {[%emt 0:00:00]} 4. Nxd4 {[%emt 0:00:00]} a6 {[%emt 0:00:00]} 5. Nc3 {[%emt 0:00:00]} Qc7 {[%emt 0:00:00]} 6. f4 {[%emt 0:00:00]} d6 {[%emt 0:00:00]} 7. Be2 {[%emt 0:00:00]} b5 {[%emt 0:00:00]} 8. Bf3 {[%emt 0:00:00]} Bb7 {[%emt 0:00:00]} 9. Be3 {[%emt 0:00:00]} Nd7 {[%emt 0:00:00]} 10. O-O {[%emt 0:07:20]} Ngf6 {[%emt 0:01:58]} 11. a3 {[%emt 0:02:49]} Be7 {[%emt 0:03:30]} 12. Qd2 {[%emt 0:05:56]} O-O {[%emt 0:04:48]} 13. Rae1 {[%emt 0:00:00]} Nc5 {[%emt 0:03:12]} 14. Bf2 {[%emt 0:09:38]} Rfd8 {[%emt 0:08:09]} 15. Nb3 {[%emt 0:00:00]} Nxb3 {[%emt 0:13:21]} 16. cxb3 {[%emt 0:00:00]} d5 {[%emt 0:00:33]} 17. e5 {[%emt 0:06:49]} Ne4 {[%emt 0:01:33]} 18. Bxe4 {[%emt 0:01:38]} dxe4 {[%emt 0:00:13]} 19. Qe2 {[%emt 0:00:26]} b4 {[%emt 0:04:09]} 20. Nxe4 {[%emt 0:02:40]} Qc6 {[%emt 0:03:40]} 21. Qg4 {[%emt 0:09:03]} a5 {[%emt 0:06:50]} 22. Nf6+ {[%emt 0:06:57]} Bxf6 {[%emt 0:03:26]} 23. exf6 {[%emt 0:00:17]} g6 {[%emt 0:00:31]} 24. Re5 {[%emt 0:06:19]} Rd5 {[%emt 0:03:30]} 25. Kh1 {[%emt 0:05:47]} Rd2 {[%emt 0:04:36]} 26. Rg5 {[%emt 0:04:05]} Rxf2 {[%emt 0:00:24]} 27. Rg1 {[%emt 0:01:06]} Rxg2 {[%emt 0:00:38]} 28. Qxg2 {[%emt 0:02:02]} Qb6 {[%emt 0:00:12]} 29. h4 {[%emt 0:00:50]} Bxg2+ {[%emt 0:00:27]} 30. R1xg2 {[%emt 0:00:08]} Rd8 {[%emt 0:00:17]} 31. h5 {[%emt 0:00:40]} Rd1+ {[%emt 0:00:51]} 32. Kh2 {[%emt 0:00:07]} Qe3 {[%emt 0:00:23]} 33. hxg6 {[%emt 0:01:06]} Qxf4+ {[%emt 0:00:06]} 34. R5g3 {[%emt 0:00:11]} Qh4+ {[%emt 0:00:47]} 35. Rh3 {[%emt 0:00:06]} Rh1+ {[%emt 0:00:05]} 36. Kxh1 {[%emt 0:00:07]} Qxh3+ {[%emt 0:00:03]} 37. Kg1 {[%emt 0:00:08]} fxg6 {[%emt 0:00:27]} 38. Rf2 {[%emt 0:00:29]} Kf7 {[%emt 0:00:15]} 39. axb4 {[%emt 0:00:10]} axb4 {[%emt 0:00:08]} 40. Rh2 {[%emt 0:00:15]} Qxb3 {[%emt 0:00:11]} 41. Rxh7+ {[%emt 0:15:08]} Kxf6 {[%emt 0:15:11]} 42. Rh2 {[%emt 0:00:06]} g5 {[%emt 0:00:14]} 43. Rf2+ {[%emt 0:00:10]} Kg6 {[%emt 0:00:11]} 44. Kg2 {[%emt 0:00:06]} g4 {[%emt 0:00:09]} 45. Kg1 {[%emt 0:00:14]} g3 {[%emt 0:00:14]} 46. Rf1 {[%emt 0:00:12]} Kg5 {[%emt 0:00:14]} 47. Kg2 {[%emt 0:00:11]} Kg4 {[%emt 0:00:18]} 48. Kh1 {[%emt 0:00:28]} Kh3 {[%emt 0:00:35]} 49. Rf2 {[%emt 0:00:14]} Qd1+ {[%emt 0:00:10]} 50. Rf1 {[%emt 0:00:08]} Qxf1# {[%emt 0:00:12]} 0-1

[Event "GER-ch Youth-U12 2022"]
[Site "Willingen"]
[Date "2022.06.10"]
[Round "8.9"]
[White "Wang, Arthur D"]
[Black "Wartenberg, Alexander"]
[Result "1/2-1/2"]
[ECO "C27"]
[WhiteElo "2090"]
[BlackElo "1682"]
[Annotator "TA"]
[PlyCount "154"]
[EventDate "2022.06.05"]
[EventType "swiss"]
[EventRounds "9"]
[EventCountry "GER"]
[SourceTitle "playchess.com"]
[Source "ChessBase"]
[SourceQuality "1"]
[TimeControl "40/4500+30:900+30"]

{[%evp 9,154,0,0,0,2,-61,-49,-48,-54,-219,-205,-237,-202,-214,-217,-238,-173,-244,-229,-408,-410,-417,-426,-511,-130,-124,-127,-124,-117,-136,-72,-79,-81,-79,-83,-92,-92,-103,-100,-103,-67,-91,-70,-178,-172,-175,-181,-271,-153,-220,-120,-193,-187,-180,-196,-413,-416,-496,-497,-494,-483,-484,-456,-522,-540,-456,-302,-352,-333,-377,-366,-420,-272,-483,-468,-532,-491,-581,-541,-548,0,-482,-461,-489,-479,-420,-463,-541,-456,-405,0,-476,-406,-561,-389,-576,-575,-492,-531,-516,-507,-708,-695,-606,-439,-723,-723,-1843,-1433,-1148,-383,-398,-391,-398,-398,-391,-376,-370,-67,-204,-48,-276,-52,-52,0,-333,-318,-277,-64,-275,-275,-228,0,0,0,0,0,0,0,0,0,0,0,0,0,0,0]} 1. e4 {[%emt 0:00:00]} e5 {[%emt 0:00:00]} 2. Nc3 {[%emt 0:00:00]} Nf6 {[%emt 0:00:00]} 3. Bc4 {[%emt 0:00:00]} Bb4 {[%emt 0:00:00]} 4. d3 {[%emt 0:00:00]} c6 {[%emt 0:00:00]} 5. Bd2 {[%emt 0:00:00]} O-O {[%emt 0:00:00]} 6. Nf3 {[%emt 0:00:00] C27: Vienna Game: 2...Nf6 3 Bc4 Nxe4.} d5 {[%emt 0:00:00]} 7. exd5 {[%emt 0:00:00]} (7. Bb3 $11) 7... cxd5 $15 {[%emt 0:00:00]} 8. Bb3 {[%emt 0:00:00] Black is slightly better.} Nc6 {[%emt 0:00:00] [#]} 9. Qe2 $146 {[%emt 0:08:18] Against e4} (9. Ne2 $15) ({Predecessor:} 9. O-O Bg4 10. h3 Be6 11. Re1 Bxc3 12. Bxc3 e4 13. Bxf6 Qxf6 14. dxe4 dxe4 15. Rxe4 Bxb3 16. axb3 Qxb2 {0-1 (22) Strobehn,A (1405)-Higgins,B (1662) ICCF email 2020}) 9... Nd4 {[%emt 0:05:39]} 10. Qf1 {[%emt 0:02:51]} Nxb3 {[%emt 0:19:38]} 11. axb3 {[%emt 0:02:10]} Re8 {[%emt 0:02:03]} 12. O-O-O {[%emt 0:02:16]} Qa5 {[%emt 0:03:19]} 13. Kb1 {[%emt 0:02:38]} (13. d4 $142) 13... Bg4 {[%emt 0:00:51]} 14. h3 $2 {[%emt 0:04:14]} (14. Na2 Bxd2 15. Rxd2) 14... Bxf3 $19 {[%emt 0:05:43]} 15. gxf3 {[%emt 0:00:19]} d4 {[%emt 0:00:47]} 16. Ne4 {[%emt 0:00:46]} Nxe4 {[%emt 0:00:22]} (16... Nd5 $19 {has better winning chances.} 17. Nd6 Bxd2) 17. Bxb4 $17 {[%emt 0:00:25]} Qxb4 {[%emt 0:00:04]} 18. fxe4 {[%emt 0:00:31]} a5 {[%emt 0:00:38]} 19. Qe1 {[%emt 0:05:04]} Qxe1 {[%emt 0:00:36]} (19... Qd6 $142 {And now ...b5 would win.} 20. Rf1 a4) 20. Rhxe1 {[%emt 0:00:53][%mdl 4096] Endgame KRR-KRR} Re6 {[%emt 0:00:19]} 21. Rg1 {[%emt 0:01:38]} h6 {[%emt 0:01:30]} 22. Rg3 {[%emt 0:01:16]} Rf6 {[%emt 0:01:50]} 23. Rdg1 {[%emt 0:01:16]} g6 {[%emt 0:00:18]} 24. Rf1 {[%emt 0:01:06]} Rf4 {[%emt 0:00:39]} 25. c3 {[%emt 0:02:54]} Rc8 {[%emt 0:02:24]} 26. c4 {[%emt 0:01:54]} (26. cxd4 $15 exd4 27. Rg4) 26... Rc6 $19 {[%emt 0:01:03]} 27. Kc2 {[%emt 0:01:40]} Rcf6 {[%emt 0:00:34]} 28. f3 {[%emt 0:01:05]} (28. Rg2 {is a better defense.}) 28... Kh7 {[%emt 0:03:22]} (28... h5 $19 29. c5 Kg7) 29. Kd2 {[%emt 0:02:39]} (29. c5 $17) 29... g5 {[%emt 0:03:47]} (29... h5 $19 30. b4 axb4) 30. Rf2 {[%emt 0:07:31]} (30. b4 $17 axb4 31. Ke2) 30... Kg6 {[%emt 0:00:24]} 31. Rf1 {[%emt 0:03:19]} Kh5 {[%emt 0:01:09]} 32. Ke2 $2 {[%emt 0:07:23]} (32. b4 {only move.} axb4 33. Kd1) 32... Rb6 {[%emt 0:01:18]} 33. Rc1 {[%emt 0:01:14]} Rxb3 {[%emt 0:00:22]} 34. Rc2 {[%emt 0:01:08]} Kh4 {[%emt 0:03:22]} 35. Rg1 {[%emt 0:00:58]} Rf6 {[%emt 0:00:53]} 36. Rd1 {[%emt 0:03:00]} Rfb6 {[%emt 0:00:45]} 37. Rdd2 {[%emt 0:00:37]} Kh5 {[%emt 0:02:38]} 38. Kf2 {[%emt 0:00:56]} Kg6 {[%emt 0:00:55]} 39. Kg3 {[%emt 0:01:00]} h5 {[%emt 0:01:16]} 40. h4 {[%emt 0:00:22]} f6 {[%emt 0:00:51]} 41. hxg5 $2 {[%emt 0:15:39]} (41. c5 {keeps fighting.} Rc6 42. Rc4) 41... fxg5 {[%emt 0:15:10]} 42. c5 {[%emt 0:00:31]} Rc6 {[%emt 0:00:13]} 43. Rc4 {[%emt 0:01:18]} Rb5 {[%emt 0:03:14]} 44. Rdc2 {[%emt 0:01:00]} Rb3 {[%emt 0:01:28]} 45. Rd2 $1 {[%emt 0:00:27]} b6 {[%emt 0:04:46]} 46. cxb6 {[%emt 0:03:41]} Rxc4 {[%emt 0:00:06]} 47. dxc4 {[%emt 0:00:07]} Rxb6 {[%emt 0:00:06] KR-KR} 48. Rc2 {[%emt 0:01:06]} Kf6 {[%emt 0:00:33]} 49. Rh2 {[%emt 0:02:18]} Kg6 {[%emt 0:00:55]} 50. Rc2 $1 {[%emt 0:00:23]} Kf7 {[%emt 0:00:03] Hoping for ...Rb3.} 51. Rh2 {[%emt 0:00:19]} Rh6 {[%emt 0:00:02] ...h4+ is the strong threat.} 52. Rh1 {[%emt 0:00:21]} (52. c5 {was necessary.} Rh8 53. Rh1) 52... h4+ {[%emt 0:03:35]} 53. Kg4 {[%emt 0:01:02]} Kg6 {[%emt 0:03:39]} 54. c5 {[%emt 0:03:00]} Rh8 {[%emt 0:00:23]} 55. c6 {[%emt 0:00:15]} Rf8 {[%emt 0:00:50]} 56. Rf1 {[%emt 0:02:05]} Rf6 {[%emt 0:00:32]} 57. Ra1 {[%emt 0:06:37]} (57. f4 $142 Rxc6 58. fxg5) 57... Rxc6 {[%emt 0:02:42]} 58. Rxa5 {[%emt 0:00:14]} Rf6 {[%emt 0:03:04]} 59. Ra3 {[%emt 0:02:43]} Rb6 $2 {[%emt 0:00:57]} (59... Rf4+ 60. Kh3 Kh5) 60. b4 {[%emt 0:02:09][%cal Ob4b5]} Rd6 $1 {[%emt 0:01:49]} 61. Rd3 {[%emt 0:00:46]} Kf6 {[%emt 0:00:40]} 62. Rd2 {[%emt 0:01:08]} Rb6 {[%emt 0:00:53]} 63. Rb2 {[%emt 0:00:58]} Rb5 $2 {[%emt 0:02:31]} (63... d3 $1 $19 64. b5 Kg6) 64. Rb3 {[%emt 0:00:00]} ({White should play} 64. Ra2 $15) 64... Kg6 $2 {[%emt 0:00:00]} (64... Ke6 $1 $19 {aiming for ...Rb8.} 65. Rb2 Rb7) 65. Rb2 $2 {[%emt 0:00:00] [#]} (65. Ra3 $1 $15) 65... Rb6 $2 {[%emt 0:00:00]} (65... Rb8 $1 $19 {Strongly threatening ...d3.} 66. Ra2 Rb6) 66. Rb3 $1 $15 {[%emt 0:00:00]} Rd6 $2 {[%emt 0:00:00][%mdl 8192]} (66... Kf7 $15 67. b5 Kg6) 67. Rd3 $1 $19 {[%emt 0:00:00]} Rf6 {[%emt 0:00:00]} 68. b5 {[%emt 0:00:00][%cal Bb4b5,Bb5b6][%mdl 32]} Rf4+ {[%emt 0:00:00]} 69. Kh3 {[%emt 0:00:00] [#]} g4+ $1 {[%emt 0:00:00]} 70. fxg4 {[%emt 0:00:00]} Rxe4 $2 {[%emt 0:00:00]} ({Black should try} 70... Kg5 $19 {Threatens to win with ...Rf8.} 71. Rb3 Rf8) 71. Kxh4 $11 {[%emt 0:00:00] The position is equal.} Rf4 {[%emt 0:00:00]} 72. b6 {[%emt 0:00:00]} Rf7 {[%emt 0:00:00]} 73. Rb3 {[%emt 0:00:00] White threatens b7 and mate.} Rb7 {[%emt 0:00:00]} 74. Kg3 {[%emt 0:00:00]} e4 {[%emt 0:00:00]} 75. Rb4 {[%emt 0:00:00]} d3 {[%emt 0:00:00]} 76. Rxe4 {[%emt 0:00:00]} Rxb6 {[%emt 0:00:00]} 77. Rd4 {[%emt 0:00:00]} Rb3 {[%emt 0:00:00] Weighted Error Value: White=0.57/Black=0.51} 1/2-1/2